Cogmind - Beta 10.2 @@@ ROGUE MODE // 2020.11.01 @ 10:11:43 Player: slanderous_mambo Result: Destroyed by G-34 Mercenary with Small Laser Performance ------------- Evolutions (0) 0 Regions Visited (2) 400 Robots Destroyed (20) 100 Value Destroyed (551) 551 Prototype IDs (0) 0 Alien Tech Used (0) 0 Bonus (39) 39 TOTAL SCORE: 1090 Bonus ------- Follower Combat Kills 39 Cogmind --------- Core Integrity 0/250 Matter 260/300 Energy 100/100 System Corruption 0% Temperature Cool (191) Movement Walking (180) Ox2 Location -10/Mines Parts ------- > --- POWER (1) -------- (None) > --- PROPULSION (2) --- Aluminum Leg > --- UTILITY (2) ------ Large Storage Unit Light Armor Plating > --- WEAPON (2) ------- Light Assault Rifle Light Cannon > --- INVENTORY (10) --- Ion Engine Heat Sink Improved Heat Sink High-capacity Matter Pod (170) Structural Scanner Tractor Beam Grenade Launcher Datajack Mining Claw Signal Generator Peak State ------------ > --- POWER ------------ Light Nuclear Core > --- PROPULSION ------- Aluminum Leg Flight Unit > --- UTILITY ---------- Large Storage Unit Light Armor Plating > --- WEAPON ----------- Light Cannon Datajack > --- INVENTORY -------- Ion Engine Heat Sink High-capacity Matter Pod Structural Scanner Tractor Beam Light Assault Rifle Grenade Launcher Mining Claw Signal Generator [Rating: 10] Favorites ----------- Power Light Nuclear Core Engine Ion Engine Power Core Light Nuclear Core Propulsion Aluminum Leg Leg Aluminum Leg Flight Unit Flight Unit Utility Light Armor Plating Device Structural Scanner Storage Large Storage Unit Protection Light Armor Plating Weapon Mining Claw Energy Gun EM Pulse Gun Energy Cannon Beam Cannon Ballistic Gun Light Assault Rifle Ballistic Cannon Light Cannon Slashing Weapon Mining Claw Special Melee Weapon Datajack Build | -11 -10 -10 ------- Run | Scr Mat Min Slots Evolved . | . . . Power . | . . . Propulsion . | . . . Utility . | . . . Weapon . | . . . Parts Attached 40 | 7 25 8 Power 7 | 2 5 . Engine 5 | 2 3 . Core 2 | . 2 . Reactor . | . . . Propulsion 9 | 2 4 3 Treads . | . . . Leg 8 | 2 4 2 Wheel . | . . . Hover . | . . . Flight 1 | . . 1 Utility 9 | 1 8 . Device 2 | . 2 . Storage 5 | 1 4 . Processor . | . . . Hackware . | . . . Protection 2 | . 2 . Artifact . | . . . Weapon 15 | 2 8 5 Energy Gun 3 | 1 2 . Energy Cannon 1 | . 1 . Ballistic Gun 4 | 1 2 1 Ballistic Cannon 1 | . 1 . Launcher . | . . . Special Weapon . | . . . Impact Weapon . | . . . Slashing Weapon 3 | . 1 2 Piercing Weapon . | . . . Special Melee Weapon 3 | . 1 2 Unidentified Prototypes . | . . . Parts Lost 7 | . 5 2 Power 2 | . 1 1 Propulsion 4 | . 3 1 Utility . | . . . Weapon 1 | . 1 . Highest Loss Streak 2 | . 2 2 Average Slot Usage (%) 92 | . 91 93 Engine 5 | . 8 . Core 8 | . 5 14 Leg 20 | . 22 16 Flight 2 | . . 5 Device 4 | . 7 . Storage 14 | . 14 14 Protection 8 | . 4 14 Energy Gun 2 | . 4 . Ballistic Gun 3 | . 3 2 Ballistic Cannon 8 | . 4 14 Slashing Weapon 8 | . 10 5 Special Melee Weapon 4 | . 3 5 Naked Turns . | . . . Heaviest Build 29 | 12 29 29 Greatest Support 20 | 20 20 20 Greatest Overweight (x) 2 | 2 2 2 Average Overweight (x) . | . . 1 Largest Inventory Capacity 10 | 6 10 10 Average Capacity 8 | 5 6 10 Most Carried 10 | 5 10 10 Average Carried 7 | 2 6 9 Final Capacity 10 | 6 10 10 Final Carried 10 | 2 9 10 Class Distribution -------------------- 92% | Mutant 7% | Scavenger-Mutant Dominant Class ---------------- Mutant | -10/Materials Mutant | -10/Mines Resources | -11 -10 -10 ----------- Run | Scr Mat Min Matter Collected 846 | 238 301 307 Remotely . | . . . Salvage Created 665 | . 474 191 Parts 38 | . 28 10 Haulers Intercepted . | . . . Recyclers Shooed 1 | . 1 . Parts Field Recycled . | . . . Retrieved Matter . | . . . Parts Self-Destructed . | . . . Prevented . | . . . Kills | -11 -10 -10 ------- Run | Scr Mat Min Combat Hostiles Destroyed 16 | . 10 6 Melee 4 | . 4 . Guns 6 | . 3 3 Cannons 5 | . 2 3 AOE 1 | . 1 . Classes Destroyed 4 | . 4 . Recycler 1 | . 1 . Watcher 3 | . 3 . Swarmer 4 | . 3 1 Grunt 12 | . 7 5 Best Kill Streak 3 | . 3 2 Combat Bots Only 3 | . 3 2 Max Kills in Single Turn 1 | . 1 1 Gunslinging . | . . . Exploded 1 | . 1 . Melee 1 | . 1 . Uniques/NPCs Destroyed . | . . . Combat | -11 -10 -10 -------- Run | Scr Mat Min Damage Taken 1269 | . 958 311 Core 258 | . 179 79 Absorbed by Shields . | . . . Core Remaining (%) 100 | 100 . . Volleys Fired 61 | . 34 27 Largest 2 | . 2 2 Hottest 60 | . 60 55 Shots Fired 98 | . 52 46 Gun 56 | . 37 19 Cannon 42 | . 15 27 Launcher . | . . . Special . | . . . Kinetic 64 | . 18 46 Thermal 22 | . 22 . Explosive . | . . . Electromagnetic 12 | . 12 . Robot Hit Streak 7 | . 5 7 Robot Miss Streak 5 | . 3 5 Penetration Max . | . . . Secondary Targets 1 | . 1 . Max Gunslinging Chain 1 | . 1 . Shots Hit Robots 85 | . 54 31 Core Hits 29 | . 18 11 Critical Hits 1 | . 1 . Critical Kills 1 | . 1 . Critical Parts Destroyed . | . . . Melee Attacks 38 | . 34 4 Impact . | . . . Slashing 25 | . 25 . Piercing . | . . . Sneak Attacks 14 | . 10 4 Combat Hostiles . | . . . Follow-up Attacks . | . . . Damage Inflicted 1155 | . 823 332 Guns 237 | . 141 96 Cannons 429 | . 193 236 Explosions 22 | . 22 . Melee 467 | . 467 . Ramming . | . . . Kinetic 389 | . 57 332 Thermal 238 | . 238 . Explosive . | . . . Electromagnetic 61 | . 61 . Impact . | . . . Slashing 467 | . 467 . Piercing . | . . . Highest Corruption . | . . . Average Corruption . | . . . Corruption Purged . | . . . Overload Shots . | . . . Overflow Damage . | . . . Projectiles . | . . . Explosions . | . . . Melee . | . . . Knockbacks 6 | . . 6 Impact . | . . . Kinetic 6 | . . 6 Secondary . | . . . Self-Inflicted Damage . | . . . Shots . | . . . Rammed . | . . . Targets Rammed . | . . . Kicked . | . . . Crushed . | . . . Highest Temperature 321 | . 321 190 Average Temperature 91 | . 107 68 Received Heat Transfer 609 | . 441 168 Siege Activations . | . . . Robots Corrupted . | . . . Combat Hostiles . | . . . Parts Fried . | . . . Impact Corruptions . | . . . Robots Melted . | . . . Combat Hostiles . | . . . Parts Melted . | . . . Heat Transferred 507 | . 507 . Parts Sabotaged . | . . . Parts Stolen . | . . . Parts Stripped . | . . . Power Chain Reactions 1 | . 1 . Missiles Intercepted . | . . . Alert | -11 -10 -10 ------- Run | Scr Mat Min Peak Influence 185 | . 185 132 Initial 1 | . . 1 Average 42 | . 41 46 Maximum Alert Level . | . . . Low Security (%) 100 | 100 100 100 Level 1 . | . . . Level 2 . | . . . Level 3 . | . . . Level 4 . | . . . Level 5 . | . . . High Security . | . . . Max Security . | . . . Squads Dispatched 3 | . 2 1 Investigation 2 | . 1 1 Extermination . | . . . Reinforcement 1 | . 1 . Assault . | . . . Garrison . | . . . Intercept . | . . . Construction Impeded . | . . . Haulers Reinforced . | . . . Stealth | -11 -10 -10 --------- Run | Scr Mat Min Distress Signals 1 | . . 1 Communications Jammed . | . . . Distress Signals . | . . . Times Spotted 34 | . 23 11 Peak Tracking Total 3 | . 3 3 Tactical Retreats 5 | . 4 1 Traps | -11 -10 -10 ------- Run | Scr Mat Min Traps Triggered 3 | . 3 . Indirectly . | . . . Trap Hack Attempts 5 | . 5 . Triggered . | . . . Disarmed 6 | . 6 . Reprogrammed . | . . . Reused . | . . . Traps Extracted . | . . . Installed . | . . . Triggered . | . . . Machines | -11 -10 -10 ---------- Run | Scr Mat Min Machines Disabled 1 | . 1 . Max in Single Turn 1 | . 1 . Machines Sabotaged . | . . . Garrisons Compromised . | . . . Overloaded Fab Kills . | . . . Fab Network Shutdowns . | . . . Hacking | -11 -10 -10 --------- Run | Scr Mat Min Machines Accessed 6 | . 5 1 Terminals 4 | . 3 1 Fabricators . | . . . Repair Stations 1 | . 1 . Recycling Units 1 | . 1 . Scanalyzers . | . . . Garrison Access . | . . . Total Hacks 16 | . 12 4 Successful 11 | . 9 2 Failed 5 | . 3 2 Catastrophic . | . . . Database Lockouts . | . . . Manual . | . . . Terminals 10 | . 6 4 Fabricators . | . . . Repair Stations 2 | . 2 . Recycling Units 4 | . 4 . Scanalyzers . | . . . Garrison Access . | . . . Terminal Hacks 8 | . 6 2 Record 3 | . 3 . Alert Level 2 | . 2 . Disarm Traps 1 | . 1 . Investigation Status 1 | . . 1 Recall Investigation 1 | . . 1 Fabricator Hacks . | . . . Repair Station Hacks . | . . . Recycling Unit Hacks 3 | . 3 . Recycle Component 1 | . 1 . Process 1 | . 1 . Retrieve Matter 1 | . 1 . Scanalyzer . | . . . Garrison Access Hacks . | . . . Unauthorized Hacks . | . . . Terminals . | . . . Fabricators . | . . . Repair Stations . | . . . Recycling Units . | . . . Scanalyzers . | . . . Garrison Access . | . . . Data Cores Recovered . | . . . Used . | . . . Hacking Detections 4 | . 3 1 Full Trace Events 1 | . . 1 Feedback Events . | . . . Feedback Blocked . | . . . Robot Schematics Acquired . | . . . Robots Built . | . . . Matter . | . . . Time . | . . . Total Robot Build Rating . | . . . Part Schematics Acquired . | . . . Parts Built . | . . . Matter . | . . . Time . | . . . Total Part Build Rating . | . . . Parts Repaired . | . . . Time . | . . . Parts Recycled 1 | . 1 . Recycled Matter 4 | . 4 . Retrieved Matter 4 | . 4 . Retrieved Components . | . . . Parts Scanalyzed . | . . . Part Schematics Acquired . | . . . Parts Damaged . | . . . Bothacking | -11 -10 -10 ------------ Run | Scr Mat Min Used RIF Installer . | . . . Robots Hacked 5 | . 4 1 Non-combat 5 | . 4 1 Combat . | . . . Robot Hacks Applied 7 | . 6 1 parse_system 1 | . 1 . no_distress 5 | . 4 1 check_alert 1 | . 1 . Relay Couplers Released . | . . . Robots Rewired . | . . . Allies Hacked . | . . . Hacks Repelled . | . . . Allies | -11 -10 -10 -------- Run | Scr Mat Min Total Allies 3 | . . 3 Largest Group 3 | . . 3 Highest-Rated Group 40 | . . 40 Highest-Rated Ally 16 | . . 16 Total Orders . | . . . Ally Attacks 10 | . . 10 Total Damage 116 | . . 116 Kills 3 | . . 3 Allies Corrupted . | . . . Allies Melted . | . . . Intel | -11 -10 -10 ------- Run | Scr Mat Min Robot Analysis Total . | . . . Derelict Logs Recovered 1 | . . 1 Drone Launches . | . . . Drone Recoveries . | . . . Exploration | -11 -10 -10 ------------- Run | Scr Mat Min Turns Passed 2667 | 59 1560 1048 Spaces Moved 1398 | 40 965 393 Core 21 | 21 . . Treads . | . . . Legs 1377 | 19 965 393 Wheels . | . . . Hover . | . . . Flight . | . . . Fastest Speed 50 | 50 120 150 Average Speed 144 | 110 134 173 Slowest Speed 180 | 150 180 180 Overloaded Moves . | . . . Propulsion Burnouts . | . . . Robots Hopped . | . . . Cave-ins Triggered . | . . . Exploration Rate (%) 60 | 4 99 78 Regions Visited 2 Branch Regions 1 Pre-discovered Areas 1 | . . 1 Known Exits Taken . | . . . Unknown Exits Taken 2 | 1 1 . Scrap Searched 1 | . . 1 Spaces Dug . | . . . Terrain Destroyed 3 | . 3 . Melee . | . . . Projectile . | . . . AOE 3 | . 3 . Terrain Rammed . | . . . Walls Destroyed . | . . . Machines Disabled . | . . . Actions | -11 -10 -10 --------- Run | Scr Mat Min Total 1891 | 54 1123 714 Wait 275 | . 1 274 Move 1396 | 39 964 393 Hop . | . . . Pick Up 51 | 8 38 5 Fast Attach . | . . . Attach 18 | 6 11 1 Detach . | . . . Swap 22 | 1 14 7 Drop 25 | . 22 3 Fire 61 | . 34 27 Melee 38 | . 34 4 Ram . | . . . Kick . | . . . Crush . | . . . Escape Stasis . | . . . Rewire . | . . . Trap 5 | . 5 . Miscellaneous . | . . . Route ------- -11/Scrapyard -10/Materials (discovered 4 exits: [*Mat x3] / *Min) -10/Mines (discovered 1 exit: [*Mat]) History --------- Turn | Location | Event 24 | -11/Scrapyard | Discovered new exit (range 16) 60 | -11/Scrapyard | Entered Materials 208 | -10/Materials | Discovered new exit (range 4) 302 | -10/Materials | Build established: Mutant 883 | -10/Materials | Discovered new exit (range 4) 1004 | -10/Materials | Core integrity fell below 50% 1178 | -10/Materials | Discovered new exit (range 6) 1247 | -10/Materials | Discovered new exit (range 11) 1620 | -10/Materials | Entered Mines 1626 | -10/Mines | Assisted by bots powering up and referring to "LRC-V3" 1740 | -10/Mines | Discovered new exit (range 5) 2034 | -10/Mines | Met a Derelict testing a Signal Generator 2044 | -10/Mines | Found Signal Generator 2143 | -10/Mines | Learned location of Zion (-6) 2168 | -10/Mines | Excavation squad dispatched 2168 | -10/Mines | A large section of the Mines collapsed 2418 | -10/Mines | Excavation squad dispatched 2521 | -10/Mines | Core integrity fell below 20% 2668 | -10/Mines | Destroyed by G-34 Mercenary with Small Laser Last Messages --------------- No tasked investigation squads found. ALERT: Suspicious activity at Terminal M001. Dispatching Investigation squad. [Achievement: One Hack Too Far] The achievement interface (ESC then open Records) offers an effective way to explore all of your earned achievements as well as seek out new goals for future runs. G-34 Mercenary destroyed. G-34 Mercenary knocked back. K-01 Serf collects debris. Aluminum Leg destroyed. K-01 Serf collects debris. T-07 Excavator destroyed. K-01 Serf collects debris. G-34 Mercenary knocked back. K-01 Serf collects debris. [Achievement: Storm Trooper] K-01 Serf collects debris. Lgt. Nuclear Core destroyed. K-01 Serf collects debris. Map ----- +----------------------------------------------------+ | ?## ## #??????????# #????????????# #?? | | ## #?????#####?# * #?????????#### #??? | | # #????## #### ##????????## #???? | | # #???### #?## #?????????# #????? | | ## #??## #### !#?????????# ##????? | | ?# #### [ #?????????## ##?????? | | ?# ## [*#??????????## #??????? | | ?# ## ###########???????????# #??????? | | ?## #### ##?????????????????????# #??????? | | ??# #??#### ##????????############### ##?????? | | ??# #?????#####????????## #?????? | | ??# ##??????????????????#T """ """ """ #?????? | | ?## #???????????????????## """ """ """ #?????? | | ## #????????????????????# """ """ """ #?????? | | ##??????#####????????# #?????? | | ######## ######???# """ """ """ #?????? | | ## ## ##??# """ """ """ #?????? | | #### """ """ """ ####??? | | #??? | | ## #??? | | ### ######## ###### #??? | | #?# ###??????# #????################ #??? | | ### ##????????# #???????????????????# #??? | | ####?????????# #???????????????????# #??? | | ### #????????????# ########????????????### ##??? | | ??# #????????????# g @==#??????????????# #???? | | ??# #????????????# t *kk=#??????????????# #???? | | ??# #????????????########%=######????###### #???? | | ??# #??????????????????##[%## ###### #???? | | ??# #?????????????????## =%!%[" ######???? | | ### #????????????????## [=*" #????????? | | #????????????????#" " [ * #######????????? | | #????????????????# *= #??????????????? | | # ####???????????????## * % #??????????????? | | # #??????????????????# =g ##??????????????? | | # #????????????? t ##???????????????? | | # #????????????# # ##????????????????? | | # #????????????## #### ; #?????????????????? | | # #?????????????### ##"## #?????????????????? | | # #???????????????## ## #?????????????????? | | # #????????????????#### #????????????????? | | # ####????????????????## ???????????????? | | #?????????????????# ## ??????????????? | | #????????????????? ##?# ?????????????? | | """ #?????????????????? ##??? ?????????????? | | """ #??????????????????#?????? ?????????????? | | """ #?????????????????????????###???????????????? | | #???????????????????????????????????????????? | | ######???????????????????????????????????????????? | | ?????????????????????????????????????????????????? | +----------------------------------------------------+ Best States ------------- Heat Dissipation 25 Energy Generation 14 Energy Capacity 250 Matter Stores 340 Matter Capacity 500 Sight Range 16 Terrain Scan Density 10 ECM Strength 1 Armor Coverage 150 Evasion (%) 50 Item Schematics ----------------- None Robot Schematics ------------------ None Fabricated ------------ Nothing Alien Tech Used ----------------- None Achievements -------------- One Hack Too Far Storm Trooper Challenges ------------ None Game ------ Seed LargeAdvancedRegulator Manual? 0 Play Time 00:35:03 Cumulative 2.8 hours Start 2020.11.01 @ 09:35:53 End 2020.11.01 @ 10:11:43 Sessions 1 Manual Loads 0 Difficulty Rogue Special Mode None Game No. 3 Rogue 2 Adventurer 1 Explorer 0 Win Type - Total 0 Types 0/0/0/0/0/0/0/0/0 Lore% 4 Gallery% 8 Achievement% 4 Wizard Run 0 Options --------- ASCII 0 Keyboard 0 Movement Vi Keybinds 1 Fullscreen 2 Font 18/Terminus Map View 76x50 Tactical HUD 0 Map Filters NONE Filters NONE Steam 1 RUN: 8d73c897-b116-4a6a-b62b-ca53aa4386f9